bitfinex-derivatives/quotes_SOLF0:USTF0_20250307
["timestamp","ask_amount","ask_price","bid_price","bid_amount"]
[1741377760734,0.05147215,146.69,146.67,0.04920272]
[1741377760936,1.9569,146.75,146.67,0.04920272]
[1741377761134,0.04399139,146.69,146.67,0.04920272]
[1741377761335,41.48693834,146.74,146.67,0.04920272]
[1741377761636,48.30253834,146.74,146.69,6.8175]
[1741377761835,0.04761812,146.72,146.69,6.8175]
[1741377762036,0.04761812,146.72,146.66,6.8188]
[1741377762225,41.48693834,146.72,146.6,191.0]
[1741377762427,31.2,146.71,146.58,41.58383834]
[1741377762736,41.48693834,146.69,146.56,204.5]
[1741377762935,1.9284,146.68,146.56,31.2]
[1741377763434,0.04308718,146.63,146.61,0.05171048]
[1741377763636,33.1709,146.65,146.52,0.1389]
[1741377763932,33.1709,146.65,146.53,31.22]
[1741377764328,33.1709,146.65,146.64,6.8199]
[1741377764635,1.9509,146.65,146.54,42.67410466]
[1741377765136,0.04378764,146.61,146.58,0.05058924]
[1741377765632,0.04378764,146.61,146.6,6.8218]
[1741377765936,8.764e-05,146.61,146.6,6.8218]
[1741377767835,8.764e-05,146.61,146.6,51.72873834]
[1741377769237,1.9084,146.73,146.72,6.8162]
[1741377769434,3.7734,146.77,146.68,41.48693834]
[1741377769736,3.7734,146.77,146.69,31.22]
[1741377770243,3.35e-06,146.74,146.72,0.04582723]
[1741377770730,3.35e-06,146.74,146.73,6.8157]
[1741377771128,3.35e-06,146.74,146.72,0.04582723]
[1741377771829,3.35e-06,146.74,146.67,31.22]
[1741377772030,3.35e-06,146.74,146.72,6.8161]
[1741377772230,3.35e-06,146.74,146.67,31.22]
[1741377773138,3.35e-06,146.74,146.71,6.8164]
[1741377773340,3.35e-06,146.74,146.69,0.04821241]
[1741377773734,3.35e-06,146.74,146.73,6.8157]
[1741377774539,3.35e-06,146.74,146.72,31.27147655]
[1741377774841,3.35e-06,146.74,146.72,0.05147655]
[1741377775333,6.81540335,146.74,146.72,0.05147655]
[1741377775535,3.35e-06,146.74,146.62,191.1866]
[1741377775734,41.48693834,146.75,146.63,31.2]
[1741377776136,41.48693834,146.75,146.65,6.8193]
[1741377776337,41.48693834,146.75,146.63,31.2]
[1741377776631,41.48693834,146.72,146.63,6.8201]
[1741377776833,6.8176,146.69,146.59,205.76651869]
[1741377777145,33.0522,146.71,146.59,205.76651869]
[1741377777336,6.8179,146.69,146.59,205.76651869]
[1741377778137,0.04521943,146.65,146.63,0.05093557]
[1741377780045,0.04521943,146.65,146.55,1.18696386]
[1741377780248,31.2,146.66,146.54,33.034]
[1741377780633,31.2,146.66,146.63,5.45337759]
[1741377781033,33.0405,146.7,146.63,5.45337759]
[1741377781237,13.6224,146.83,146.63,5.50300578]
[1741377781238,8.046e-05,146.66,146.63,5.50300578]
[1741377781442,34.8847,146.76,146.65,41.48693834]
[1741377782134,41.48693834,146.75,146.63,5.45337759]
[1741377782342,41.48693834,146.75,146.68,0.04354379]
[1741377782642,34.8847,146.76,146.68,0.04354379]
[1741377782845,0.04801597,146.73,146.68,0.04354379]
[1741377783347,0.04801597,146.73,146.69,6.8173]
[1741377783534,0.04801597,146.73,146.68,0.04354379]
[1741377783740,41.48693834,146.7,146.63,5.45337759]
[1741377784344,6.8188,146.67,146.63,12.27337759]
[1741377784543,41.48693834,146.7,146.63,5.45337759]
[1741377784845,41.48693834,146.67,146.65,0.04934615]
[1741377785050,72.70693834,146.67,146.6,6.8215]
[1741377785440,31.22,146.67,146.58,31.22]
[1741377785640,31.22,146.71,146.58,31.22]
[1741377786049,6.8189,146.67,146.58,31.22]
[1741377786347,0.05225528,146.66,146.63,0.04782339]
[1741377786644,72.70693834,146.76,146.64,31.22]
[1741377786947,6.8156,146.74,146.7,6.8168]
[1741377787242,72.70693834,146.76,146.64,31.22]
[1741377787543,1.9578,146.78,146.64,31.22]
[1741377787744,0.04574096,146.71,146.69,0.04732887]
[1741377787939,31.22,146.77,146.65,1.9466]
[1741377788145,0.04376383,146.71,146.69,0.05168606]
[1741377788339,41.48693834,146.73,146.69,0.05168606]
[1741377788546,6.8182,146.68,146.64,6.8196]
[1741377788844,41.48693834,146.73,146.62,31.22]
[1741377789045,6.8193,146.66,146.62,38.0406]
[1741377789242,41.48693834,146.7,146.62,31.22]
[1741377789449,41.48693834,146.7,146.57,31.22]
[1741377789742,0.05104238,146.67,146.57,31.22]
[1741377789941,1.8347,146.69,146.62,0.04638883]
[1741377790141,1.8878,146.71,146.62,0.04638883]
[1741377790346,1.8878,146.71,146.63,31.22]
[1741377790941,41.48693834,146.75,146.63,31.22]
[1741377791142,1.9758,146.76,146.66,41.48693834]
[1741377791349,0.04405861,146.7,146.68,0.05225292]
[1741377791555,1.9758,146.76,146.68,0.05225292]
[1741377791849,0.05117682,146.7,146.68,0.05225292]
[1741377792049,0.04942514,146.7,146.68,0.05225292]
[1741377793245,2.514e-05,146.7,146.69,6.8176]
[1741377794549,2.514e-05,146.7,146.69,10.2176]
[1741377794747,2.514e-05,146.7,146.69,6.8176]
[1741377796850,2.514e-05,146.7,146.68,0.05225292]
[1741377797851,6.81742514,146.7,146.68,0.05225292]
[1741377798449,6.8176,146.69,146.68,0.05225292]
[1741377798653,2.514e-05,146.7,146.61,31.2]
[1741377798953,41.48693834,146.68,146.61,31.2]
[1741377799550,41.48693834,146.68,146.56,31.2]
[1741377799748,41.48693834,146.65,146.56,31.2]
[1741377799950,0.04488702,146.63,146.61,0.04376387]
[1741377800150,6.86558702,146.63,146.61,0.04376387]
[1741377800956,0.04488702,146.63,146.61,0.04376387]
[1741377801455,6.8212,146.62,146.53,31.2]
[1741377801647,41.48693834,146.65,146.53,31.2]
[1741377802454,0.04965614,146.6,146.58,0.04739219]
[1741377802655,6.8211,146.62,146.58,0.04739219]
[1741377802950,0.04710057,146.6,146.58,0.04739219]
[1741377804358,0.04710057,146.6,146.58,6.86979219]
[1741377805259,0.04710057,146.6,146.58,0.04739219]
[1741377805457,6.8222,146.59,146.58,0.04739219]
[1741377805661,6.8222,146.59,146.5,31.22]
[1741377805853,1.843,146.6,146.5,31.22]
[1741377806456,8.665,146.6,146.56,6.8234]
[1741377806860,8.665,146.6,146.5,31.22]
[1741377806861,0.04316044,146.59,146.57,0.04343704]
[1741377807061,0.04316044,146.59,146.57,6.8229]
[1741377807260,0.04316044,146.59,146.57,0.04723804]
[1741377807465,6.86586044,146.59,146.57,0.04723804]
[1741377807765,41.53009878,146.59,146.48,239.6939]
[1741377807957,41.48693834,146.59,146.48,35.1139]
[1741377808159,6.8237,146.56,146.48,31.22]
[1741377808357,41.48693834,146.59,146.48,31.22]
[1741377808568,6.8236,146.56,146.48,31.22]
[1741377808764,0.04873926,146.55,146.53,6.8247]
[1741377808961,0.04873926,146.55,146.52,0.04924632]
[1741377809266,0.04873926,146.55,146.53,6.825]
[1741377809459,0.04873926,146.55,146.52,0.04924632]
[1741377809657,41.48693834,146.53,146.41,204.66]
[1741377809864,3.827,146.52,146.4,192.9389]
[1741377810063,31.22,146.51,146.4,192.9389]
[1741377810267,31.22,146.51,146.4,1.9389]
[1741377810766,0.05072542,146.47,146.44,0.05122922]
[1741377810969,0.05072542,146.47,146.45,6.8285]
[1741377811575,0.05072542,146.47,146.44,0.05122922]
[1741377812169,2.542e-05,146.47,146.46,6.8283]
[1741377813768,2.542e-05,146.47,146.44,0.05122922]
[1741377814173,41.48693834,146.46,146.44,0.05122922]
[1741377814371,41.48693834,146.46,146.39,191.0]
[1741377814569,41.48693834,146.46,146.35,1.9589]
[1741377814871,1.8333,146.45,146.35,1.9589]
[1741377815078,1.8333,146.45,146.35,43.44583834]
[1741377815275,41.48693834,146.46,146.35,43.44583834]
[1741377815476,0.04977159,146.41,146.39,0.04570412]
[1741377815675,41.48693834,146.46,146.39,0.04570412]
[1741377815866,0.0440717,146.41,146.39,0.04570412]
[1741377816071,72.70693834,146.43,146.31,33.1457]
[1741377816473,72.70693834,146.43,146.31,34.33469158]
[1741377816668,41.48693834,146.43,146.31,34.33469158]
[1741377816876,41.48693834,146.43,146.36,6.8327]
[1741377817074,43.36403834,146.43,146.31,34.33469158]
[1741377817372,0.04750087,146.41,146.38,0.04873495]
[1741377818079,0.04750087,146.41,146.29,41.48693834]
[1741377818279,41.48693834,146.4,146.28,33.0981]
[1741377818575,6.8331,146.36,146.31,6.8349]
[1741377818781,41.48693834,146.4,146.25,192.9383]
[1741377819080,31.24,146.41,146.28,41.48693834]
[1741377819277,1.601e-05,146.34,146.31,0.04946429]
[1741377819483,31.24,146.41,146.29,31.24]
[1741377819673,31.24,146.41,146.39,6.8313]
[1741377819873,31.24,146.41,146.31,41.48693834]
[1741377820069,43.30303834,146.47,146.34,41.48693834]
[1741377820270,1.8161,146.47,146.35,33.1247]
[1741377820475,9.128e-05,146.42,146.39,0.04404145]
[1741377820777,9.128e-05,146.42,146.4,6.8311]
[1741377820979,9.128e-05,146.42,146.39,0.04404145]
[1741377821379,9.128e-05,146.42,146.41,6.8306]
[1741377822575,9.128e-05,146.42,146.39,0.04404145]
[1741377822775,9.128e-05,146.42,146.4,6.831]
[1741377823175,41.46702962,146.45,146.39,0.04404145]
[1741377823882,1.9496,146.46,146.39,0.04404145]
[1741377824381,0.0443057,146.44,146.39,0.04404145]
[1741377825582,5.7e-06,146.44,146.43,6.8297]
[1741377828678,5.7e-06,146.44,146.42,0.05159274]
[1741377830486,6.8294057,146.44,146.42,0.05159274]
[1741377831089,5.7e-06,146.44,146.42,0.05159274]
[1741377832288,6.8296057,146.44,146.42,0.05159274]
[1741377832787,5.7e-06,146.44,146.42,0.05159274]
[1741377834684,5.7e-06,146.44,146.43,6.8297]
[1741377836495,5.7e-06,146.44,146.43,10.2497]
[1741377836791,5.6447,146.59,146.44,13.6583]
[1741377836986,5.6447,146.59,146.47,41.48693834]
[1741377837192,5.6447,146.59,146.55,6.8237]
[1741377837692,6.8234,146.57,146.48,33.0574]
[1741377837894,41.53163316,146.58,146.56,0.04392093]
[1741377838096,6.8233,146.57,146.48,33.0574]
[1741377838491,0.04325562,146.54,146.51,0.04693691]
[1741377839998,0.04325562,146.54,146.53,6.825]
[1741377840791,0.04325562,146.54,146.51,0.04693691]
[1741377841097,0.04325562,146.54,146.45,70.81336079]
[1741377841396,56.59304418,146.57,146.45,102.03336079]
[1741377841792,56.59304418,146.57,146.53,6.8247]
[1741377841992,56.59304418,146.57,146.45,31.22]
[1741377842197,0.04468434,146.56,146.54,0.04422005]
[1741377842391,31.22,146.57,146.46,25.37304418]
[1741377842592,6.8237,146.56,146.46,25.37304418]
[1741377842896,0.04476792,146.53,146.51,6.8257]
[1741377843094,25.37304418,146.57,146.46,25.37304418]
[1741377843290,0.05066108,146.53,146.51,0.04608663]
[1741377843494,6.108e-05,146.53,146.52,6.8255]
[1741377844397,32.19504418,146.6,146.52,6.8255]
[1741377844398,25.37304418,146.72,146.52,28.79304418]
[1741377844692,3.8717,146.67,146.53,1.8784]
[1741377844887,25.37304418,146.62,146.53,1.8784]
[1741377845089,25.37304418,146.62,146.52,1.8747]
[1741377845294,41.21005922,146.61,146.52,1.8747]
[1741377845487,41.21005922,146.58,146.51,6.8259]
[1741377845695,1.8957,146.57,146.55,0.0492776]
[1741377845888,3.7626,146.57,146.48,31.22]
[1741377846099,1.8721,146.56,146.48,31.22]
[1741377847003,0.04886444,146.53,146.51,0.04341326]
[1741377847204,0.04886444,146.53,146.52,6.8255]
[1741377847503,72.43005922,146.58,146.51,0.04341326]
[1741377847504,6.8216,146.61,146.51,0.04341326]
[1741377847693,3.739,146.62,146.5,41.21005922]
[1741377847997,10.56,146.62,146.5,41.21005922]
[1741377848192,3.739,146.62,146.51,1.9137]
[1741377848592,0.04879197,146.58,146.55,0.05239844]
[1741377849904,6.8236,146.56,146.55,0.05239844]
[1741377850105,0.04879197,146.58,146.47,31.2]
[1741377850302,44.94905922,146.62,146.47,31.2]
[1741377850502,41.21005922,146.59,146.47,31.2]
[1741377851302,0.04807141,146.54,146.52,0.04852717]
[1741377851496,8.7959,146.61,146.47,31.2]
[1741377851698,1.9745,146.61,146.47,31.2]
[1741377852099,1.9745,146.61,146.56,6.8234]
[1741377852505,0.05081487,146.6,146.57,0.04662059]
[1741377852899,0.05081487,146.6,146.57,6.86942059]
[1741377853300,0.05081487,146.6,146.57,0.04662059]
[1741377853507,6.8223,146.59,146.57,0.04662059]
[1741377853697,0.05081487,146.6,146.57,0.04662059]
[1741377854207,0.05081487,146.6,146.59,6.8222]
[1741377859012,0.05081487,146.6,146.57,0.04662059]
[1741377859813,1.86021487,146.6,146.57,0.04662059]
[1741377860411,6.8225,146.59,146.57,0.04662059]
[1741377860611,0.05081487,146.6,146.57,0.04662059]
[1741377861207,0.05081487,146.6,146.57,6.86952059]
[1741377861411,0.05081487,146.6,146.57,0.04662059]
[1741377862413,193.0,146.69,146.57,0.04662059]
[1741377862614,6.8178,146.69,146.56,1.7989]
[1741377862813,41.21005922,146.71,146.58,41.21005922]
[1741377863115,6.8202,146.64,146.56,1.7989]
[1741377863307,41.21005922,146.68,146.56,1.7989]
[1741377863508,0.04759763,146.63,146.61,0.04537948]
[1741377863703,6.8202,146.64,146.61,0.04537948]
[1741377864009,0.04585628,146.65,146.61,0.04537948]
[1741377865315,6.8202,146.64,146.61,0.04537948]
[1741377865814,0.04585628,146.65,146.61,0.04537948]
[1741377866920,6.8202,146.64,146.61,0.04537948]
[1741377867518,0.04585628,146.65,146.61,0.04537948]
[1741377869218,6.82,146.64,146.61,0.04537948]
[1741377869520,0.04585628,146.65,146.61,0.04537948]
[1741377869816,6.8208,146.62,146.61,0.04537948]
[1741377870016,0.04585628,146.65,146.61,0.04537948]
[1741377870920,6.82,146.64,146.61,0.04537948]
[1741377871923,0.04585628,146.65,146.61,0.04537948]
[1741377872226,6.8208,146.62,146.61,0.04537948]
[1741377872416,0.04585628,146.65,146.61,0.04537948]
[1741377873322,0.04585628,146.65,146.64,6.8199]
[1741377873725,0.04585628,146.65,146.61,6.86647948]
[1741377874326,0.04585628,146.65,146.61,0.04537948]
[1741377874922,25.3371344,146.64,146.52,15.6471]
[1741377875119,25.3371344,146.64,146.53,32.9683]
[1741377875323,6.8211,146.62,146.58,6.8224]
[1741377875628,25.3371344,146.64,146.53,1.8083]
[1741377875923,31.16,146.63,146.52,31.16]
[1741377876119,6.8227,146.58,146.57,0.05045096]
[1741377876326,0.04673095,146.6,146.5,31.16]
[1741377876526,1.9541,146.59,146.48,1.8067]
[1741377877131,6.823,146.58,146.48,1.8067]
[1741377877527,0.05064347,146.54,146.52,0.04302905]
[1741377877726,1.9541,146.59,146.52,6.86842905]
[1741377877927,0.04730968,146.54,146.52,6.86842905]
[1741377878132,1.9541,146.59,146.52,6.86842905]
[1741377878323,6.8235,146.57,146.52,6.86842905]
[1741377878633,25.38589961,146.57,146.52,0.04302905]
[1741377879430,0.04876521,146.57,146.52,0.04302905]
[1741377881134,0.04876521,146.57,146.54,6.8241]
[1741377881337,0.04876521,146.57,146.52,0.04302905]
[1741377881842,6.87196521,146.57,146.53,6.8249]
[1741377882135,0.04876521,146.57,146.52,0.04302905]
[1741377882336,25.38589961,146.57,146.52,0.04302905]
[1741377882639,25.3371344,146.54,146.44,32.9667]
[1741377882840,56.4971344,146.54,146.44,32.9667]
[1741377883041,63.3219344,146.54,146.5,6.8262]
[1741377883231,63.3219344,146.54,146.44,32.9667]
[1741377883836,0.04964502,146.5,146.48,0.045554]
[1741377884144,4.502e-05,146.5,146.49,6.8269]
[1741377887448,4.502e-05,146.5,146.48,0.045554]
[1741377888248,6.82654502,146.5,146.48,0.045554]
[1741377888544,6.8269,146.49,146.48,0.045554]
[1741377888946,4.502e-05,146.5,146.48,0.045554]
[1741377889542,6.82654502,146.5,146.48,0.045554]
[1741377889743,4.502e-05,146.5,146.38,1.18836225]
[1741377889948,34.866,146.49,146.37,40.9627344]
[1741377890144,6.8281,146.47,146.43,6.8294]
[1741377890744,34.866,146.49,146.37,58.4579344]
[1741377890947,0.0445051,146.46,146.45,6.8287]
[1741377891943,0.0445051,146.46,146.44,0.04865472]
[1741377892139,0.0445051,146.46,146.44,6.87765472]
[1741377892449,0.0445051,146.46,146.44,0.04865472]
[1741377893139,0.0445051,146.46,146.45,6.8288]
[1741377895551,0.0445051,146.46,146.44,0.04865472]
[1741377896353,0.0445051,146.46,146.45,6.8288]
[1741377897953,0.0445051,146.46,146.44,6.87775472]
[1741377898450,0.0445051,146.46,146.44,0.04865472]
[1741377898953,6.8732051,146.46,146.44,0.04865472]
[1741377899153,0.0445051,146.46,146.44,0.04865472]
[1741377901054,25.3371344,146.45,146.33,29.3082344]
[1741377901251,25.3371344,146.42,146.33,5.7968]
[1741377901460,31.16,146.41,146.31,1.18874789]
[1741377901761,25.3371344,146.39,146.27,5.7141]
[1741377901947,25.3371344,146.39,146.24,163.21237866]
[1741377902257,0.04323772,146.33,146.3,0.0444974]
[1741377902555,31.16,146.35,146.24,166.95157866]
[1741377902856,0.04648061,146.33,146.3,0.05005741]
[1741377903652,8.061e-05,146.33,146.32,6.8348]
[1741377905354,56.4971344,146.46,146.32,28.7571344]
[1741377905556,1.8716,146.45,146.33,31.16]
[1741377905752,25.3371344,146.43,146.33,31.16]
[1741377905952,25.3371344,146.43,146.31,1.9984]
[1741377906152,25.3371344,146.4,146.28,31.16]
[1741377906347,25.3371344,146.37,146.26,3.6971]
[1741377906552,0.04341209,146.35,146.24,33.1227]
[1741377906755,1.9707,146.36,146.24,33.1227]
[1741377907660,25.3371344,146.34,146.24,33.1227]
[1741377907856,0.04317855,146.31,146.29,0.04849146]
[1741377908659,0.04317855,146.31,146.25,6.838]
[1741377908856,56.4971344,146.34,146.22,3.9136]
[1741377909357,63.3313344,146.34,146.22,3.9136]
[1741377909558,56.4971344,146.34,146.22,3.9136]
[1741377909959,0.04987043,146.29,146.23,25.3371344]
[1741377910161,7.043e-05,146.29,146.23,25.3371344]
[1741377910363,7.043e-05,146.29,146.22,3.9136]
[1741377910364,7.043e-05,146.29,146.28,6.8367]
[1741377912651,31.16,146.36,146.28,28.7571344]
[1741377912857,1.8348,146.42,146.28,27.2594344]
[1741377913154,1.8348,146.42,146.31,25.3371344]
[1741377913350,8.6651,146.42,146.32,31.16]
[1741377913554,1.8348,146.42,146.32,31.16]
[1741377913765,1.8348,146.42,146.33,1.9553]
[1741377913966,0.05171832,146.38,146.36,0.045558]
[1741377914461,58.4695344,146.47,146.36,0.045558]
[1741377914665,62.2855344,146.47,146.34,25.3371344]
[1741377914864,62.2855344,146.47,146.35,1.9223]
[1741377915466,6.83,146.43,146.4,6.8311]
[1741377915661,0.05111341,146.42,146.4,0.04524927]
[1741377917265,0.05111341,146.42,146.41,6.8306]
[1741377918068,0.05111341,146.42,146.4,0.04524927]
[1741377919968,25.38824781,146.42,146.35,31.14]
[1741377920167,6.8314,146.4,146.36,6.8329]
[1741377920366,25.38824781,146.42,146.35,31.14]
[1741377920567,31.14,146.41,146.31,1.9951]
[1741377920766,6.8313,146.4,146.36,6.8329]
[1741377920960,0.04790383,146.37,146.36,6.8329]
[1741377921156,5.7884,146.47,146.36,31.14]
[1741377921360,5.7884,146.47,146.45,6.8287]
[1741377921564,5.7884,146.47,146.37,1.831]
[1741377921759,3.816,146.47,146.37,1.831]
[1741377921965,27.2766344,146.54,146.39,25.3371344]
[1741377922161,60.2271344,146.54,146.39,25.3371344]
[1741377922462,0.04824953,146.48,146.47,6.8278]
[1741377922661,6.8252,146.53,146.38,3.7571]
[1741377922662,6.8252,146.53,146.42,56.4771344]
[1741377922861,2.646e-05,146.49,146.46,0.05115482]
[1741377923068,2.646e-05,146.49,146.48,32.1645344]
[1741377923356,29.0871344,146.6,146.48,25.3371344]
[1741377923567,6.8227,146.58,146.53,6.8247]
[1741377923764,29.0871344,146.6,146.47,31.14]
[1741377924062,0.05095993,146.57,146.54,0.04882974]
[1741377924360,0.05095993,146.57,146.54,6.87322974]
[1741377924556,0.05095993,146.57,146.54,0.04882974]
[1741377928371,0.05095993,146.57,146.56,6.8236]
[1741377929968,1.9147,146.62,146.6,6.8217]
[1741377930268,25.3371344,146.66,146.53,27.2220344]
[1741377930469,1.8302,146.65,146.53,27.2220344]
[1741377930871,6.8221,146.6,146.53,27.2220344]
[1741377931166,1.8302,146.65,146.53,27.2220344]
[1741377931363,0.04732575,146.58,146.55,0.0481086]
[1741377931564,1.8302,146.65,146.53,27.2220344]
[1741377931867,0.04750857,146.58,146.55,0.04923036]
[1741377932066,1.8302,146.65,146.53,27.2220344]
[1741377932270,0.05213636,146.57,146.54,0.04430272]
[1741377932567,1.8302,146.65,146.53,27.2220344]
[1741377932767,6.92e-06,146.57,146.56,25.3371344]
[1741377932971,1.8302,146.65,146.56,25.3371344]
[1741377933371,8.6498,146.65,146.6,6.8217]
[1741377933875,1.8302,146.65,146.57,31.1]
[1741377934070,1.8302,146.65,146.61,0.04868486]
[1741377934270,0.05216187,146.64,146.61,0.04868486]
[1741377934871,59.88929627,146.64,146.5,191.0]
[1741377935174,56.4171344,146.64,146.49,56.4171344]
[1741377935376,6.8221,146.6,146.55,6.8238]
[1741377935571,56.4171344,146.64,146.49,25.3371344]
[1741377935871,6.8232,146.57,146.55,0.04811229]
[1741377936076,25.3371344,146.61,146.49,56.4171344]
[1741377936266,0.04364759,146.57,146.55,0.05014884]
[1741377936470,0.04364759,146.57,146.51,6.8258]
[1741377936672,25.3371344,146.55,146.46,32.9003]
[1741377936867,6.8263,146.51,146.47,6.8274]
[1741377937174,31.08,146.54,146.42,31.08]
[1741377937474,6.826,146.51,146.47,6.8275]
[1741377937669,0.04998355,146.49,146.47,0.04487474]
[1741377937874,25.3371344,146.52,146.47,0.04487474]
[1741377938077,6.8263,146.51,146.47,6.87267474]
[1741377938275,0.04757044,146.49,146.47,6.87267474]
[1741377938575,0.04757044,146.49,146.47,0.04487474]
[1741377940171,6.8274,146.48,146.47,0.04487474]
[1741377940475,6.8274,146.48,146.38,31.08]
[1741377940476,31.08,146.48,146.38,31.08]
[1741377940672,6.8305,146.42,146.37,6.8324]
[1741377940870,25.3371344,146.46,146.35,31.08]
[1741377941377,3.9232,146.47,146.35,56.4171344]
[1741377941577,0.04588374,146.42,146.39,0.04850157]
[1741377941978,0.04588374,146.42,146.41,6.8304]
[1741377942480,0.04588374,146.42,146.41,6.8306]
[1741377942782,8.374e-05,146.42,146.41,6.8306]
[1741377945580,36.7321,146.51,146.47,6.8275]
[1741377945782,36.7321,146.51,146.4,31.08]
[1741377946485,5.6521,146.51,146.41,25.3371344]
[1741377946670,1.616e-05,146.47,146.44,0.05051252]
[1741377946875,1.616e-05,146.47,146.46,6.8283]
[1741377952089,1.616e-05,146.47,146.45,6.8286]
[1741377952391,1.616e-05,146.47,146.44,0.05051252]
[1741377952596,1.616e-05,146.47,146.37,31.06]
[1741377952787,32.9508,146.5,146.34,25.3371344]
[1741377952788,25.3371344,146.46,146.34,25.3371344]
[1741377952989,31.06,146.45,146.34,25.3371344]
[1741377953698,4.831e-05,146.41,146.38,0.04396926]
[1741377954397,4.831e-05,146.41,146.4,6.8311]
[1741377954790,4.831e-05,146.41,146.38,0.04396926]
[1741377954998,4.831e-05,146.41,146.39,6.8315]
[1741377955390,4.831e-05,146.41,146.38,0.04396926]
[1741377955591,4.831e-05,146.41,146.4,6.8311]
[1741377955787,4.831e-05,146.41,146.38,0.04396926]
[1741377956593,4.831e-05,146.41,146.4,6.8311]
[1741377957496,4.831e-05,146.41,146.38,0.04396926]
[1741377958095,4.831e-05,146.41,146.39,6.8313]
[1741377958597,4.831e-05,146.41,146.38,0.04396926]
[1741377958797,6.83094831,146.41,146.38,6.87586926]
[1741377959003,4.831e-05,146.41,146.38,0.04396926]
[1741377960302,4.831e-05,146.41,146.4,6.8311]
[1741377960999,4.831e-05,146.41,146.38,0.04396926]
[1741377963200,6.83084831,146.41,146.38,6.87586926]
[1741377963703,4.831e-05,146.41,146.4,6.8311]
[1741377964506,4.831e-05,146.41,146.38,6.87566926]
[1741377964699,4.831e-05,146.41,146.38,0.04396926]
[1741377965002,56.3971344,146.4,146.27,76.9082344]
[1741377965202,33.0548,146.4,146.3,25.3371344]
[1741377966199,0.05091309,146.36,146.34,6.88031662]
[1741377966398,0.05091309,146.36,146.34,0.04671662]
[1741377966803,1.309e-05,146.36,146.35,6.8334]
[1741377967208,1.8308,146.43,146.34,0.04671662]
[1741377967408,1.8308,146.43,146.33,25.3371344]
[1741377968005,8.6607,146.43,146.4,6.8308]
[1741377968207,1.87951165,146.43,146.4,0.05244755]
[1741377969004,6.8302,146.42,146.4,0.05244755]
[1741377969812,8.70951165,146.43,146.4,6.88354755]
[1741377970605,1.87951165,146.43,146.42,6.8302]
[1741377971306,0.04871165,146.43,146.42,6.8302]
[1741377971508,0.04871165,146.43,146.4,0.05244755]
[1741377972113,0.04871165,146.43,146.42,6.8302]
[1741377972607,1.165e-05,146.43,146.42,6.8302]
[1741377973815,5.6646,146.52,146.51,6.826]
[1741377974204,5.6646,146.52,146.42,56.3771344]
[1741377975007,0.04898387,146.48,146.46,0.04682464]
[1741377975513,0.04898387,146.48,146.47,6.8278]
[1741377975710,0.04898387,146.48,146.46,0.04682464]
[1741377977710,0.04898387,146.48,146.41,6.8304]
[1741377978202,0.04898387,146.48,146.38,34.9655]
[1741377978406,56.3771344,146.5,146.38,34.9655]
[1741377978802,0.0471333,146.45,146.43,0.04512469]
[1741377979007,5.6646,146.52,146.43,0.04512469]
[1741377979207,0.04358524,146.45,146.43,0.04512469]
[1741377979408,5.6646,146.52,146.46,0.05110459]
[1741377979614,31.04,146.51,146.43,6.8294]
[1741377979809,0.04611718,146.5,146.4,31.04]
[1741377980005,31.04,146.51,146.42,25.3371344]
[1741377980610,31.04,146.51,146.46,6.828]
[1741377980817,31.04,146.51,146.42,25.3371344]
[1741377981019,0.04730638,146.5,146.47,0.04796203]
[1741377981717,0.04730638,146.5,146.42,6.8301]
[1741377981913,6.8276,146.48,146.39,31.02]
[1741377982216,56.3771344,146.51,146.39,31.02]
[1741377982415,6.8272,146.49,146.44,6.829]
[1741377982917,0.04395528,146.48,146.45,0.04336725]
[1741377983414,0.04395528,146.48,146.45,6.87176725]
[1741377983716,0.04395528,146.48,146.45,0.04336725]
[1741377984318,5.528e-05,146.48,146.47,6.8278]
[1741377986013,5.528e-05,146.48,146.47,8.89770209]
[1741377989921,31.0,146.61,146.47,5.48990209]
[1741377990116,3.7421,146.59,146.47,2.06990209]
[1741377990516,10.5646,146.59,146.47,2.06990209]
[1741377990814,3.7421,146.59,146.47,2.06990209]
[1741377991122,0.05083688,146.54,146.52,0.04943911]
[1741377991318,3.7421,146.59,146.52,0.04943911]
[1741377991518,6.87615628,146.54,146.52,0.04943911]
[1741377991713,6.8248,146.54,146.52,0.04943911]
[1741377992019,6.87258425,146.54,146.52,0.04943911]
[1741377992423,6.825,146.53,146.52,0.04943911]
[1741377993118,6.87258425,146.54,146.52,0.04943911]